bitfinex/quotes_BTCUSD_20240715
["timestamp","ask_amount","ask_price","bid_price","bid_amount"]
[1721087541778,0.00959933,64931.0,64930.0,0.142209]
[1721087543346,0.07579933,64931.0,64930.0,0.019]
[1721087544224,0.00959933,64931.0,64930.0,0.019]
[1721087544832,0.08829933,64931.0,64930.0,0.019]
[1721087544992,0.14829933,64931.0,64930.0,0.019]
[1721087545193,0.08829933,64931.0,64930.0,0.019]
[1721087545399,0.14829933,64931.0,64930.0,0.019]
[1721087545602,0.08912933,64931.0,64930.0,0.008]
[1721087545802,0.08812933,64931.0,64928.0,0.000913]
[1721087545997,0.08812933,64931.0,64930.0,0.011]
[1721087546245,0.08812933,64931.0,64930.0,0.019]
[1721087546246,0.08912933,64931.0,64930.0,0.019]
[1721087546455,0.08912933,64931.0,64930.0,0.008]
[1721087546705,0.08912933,64931.0,64930.0,0.019]
[1721087548150,0.23423117,64931.0,64930.0,0.019]
[1721087548368,0.39142933,64931.0,64930.0,0.019]
[1721087548516,0.45142933,64931.0,64930.0,0.019]
[1721087548862,0.47553309,64931.0,64930.0,0.019]
[1721087549065,0.41553309,64931.0,64930.0,0.019]
[1721087549878,0.47553309,64931.0,64930.0,0.008]
[1721087550072,0.41453309,64931.0,64928.0,0.000913]
[1721087550274,0.14912933,64931.0,64930.0,0.003]
[1721087550836,0.14912933,64931.0,64928.0,0.000913]
[1721087551644,0.08812933,64931.0,64930.0,0.123209]
[1721087551965,0.08812933,64931.0,64928.0,0.124125]
[1721087552399,0.08812933,64931.0,64930.0,0.003]
[1721087552950,0.14812933,64931.0,64930.0,0.003]
[1721087553152,0.14812933,64931.0,64928.0,0.000913]
[1721087553153,0.08812933,64931.0,64928.0,0.000913]
[1721087553587,0.08812933,64931.0,64928.0,0.001913]
[1721087553791,0.08812933,64931.0,64928.0,0.000913]
[1721087554198,0.08812933,64931.0,64928.0,0.004913]
[1721087554579,0.08812933,64931.0,64929.0,0.123211]
[1721087555203,0.08812933,64931.0,64928.0,0.004913]
[1721087555409,0.08812933,64931.0,64930.0,0.001]
[1721087555609,0.08812933,64931.0,64929.0,0.123211]
[1721087555928,0.00942933,64931.0,64929.0,0.123211]
[1721087556687,0.06,64929.0,64928.0,0.000913]
[1721087556889,0.00707566,64929.0,64928.0,0.000913]
[1721087557384,0.49377082,64929.0,64928.0,0.000913]
[1721087557588,0.44757566,64929.0,64928.0,0.000913]
[1721087557788,0.43377338,64929.0,64928.0,0.000913]
[1721087558011,0.4578776,64929.0,64928.0,0.000913]
[1721087558209,0.43377338,64929.0,64928.0,0.000913]
[1721087558480,0.38757566,64929.0,64928.0,0.000913]
[1721087558628,0.43377338,64929.0,64928.0,0.000913]
[1721087559041,0.38757566,64929.0,64928.0,0.000913]
[1721087559443,0.38757566,64929.0,64928.0,0.006913]
[1721087559609,0.43377338,64929.0,64928.0,0.006913]
[1721087560032,0.43377338,64929.0,64928.0,0.008913]
[1721087560448,0.38757566,64929.0,64928.0,0.008913]
[1721087560648,0.41168014,64929.0,64928.0,0.008913]
[1721087561104,0.50407047,64929.0,64928.0,0.008913]
[1721087561283,0.41168014,64929.0,64928.0,0.008913]
[1721087561483,0.48095975,64929.0,64928.0,0.008913]
[1721087561685,0.19246161,64929.0,64928.0,0.008913]
[1721087562083,0.14627566,64929.0,64928.0,0.008913]
[1721087562289,0.14627566,64929.0,64928.0,0.002913]
[1721087562602,0.14627566,64929.0,64928.0,0.000913]
[1721087562803,0.00707566,64929.0,64928.0,0.003913]
[1721087565728,0.0532536,64929.0,64928.0,0.003913]
[1721087566029,0.03118062,64929.0,64928.0,0.003913]
[1721087566270,0.12353453,64929.0,64928.0,0.003913]
[1721087566623,0.03118062,64929.0,64928.0,0.003913]
[1721087566988,0.10044554,64929.0,64928.0,0.003913]
[1721087567400,0.16044554,64929.0,64928.0,0.003913]
[1721087567596,0.1235285,64929.0,64928.0,0.003913]
[1721087568635,0.03118062,64929.0,64928.0,0.003913]
[1721087568805,0.1235285,64929.0,64928.0,0.003913]
[1721087569206,0.10043472,64929.0,64928.0,0.003913]
[1721087569410,0.03118062,64929.0,64928.0,0.003913]
[1721087569609,0.03118062,64929.0,64928.0,0.000913]
[1721087570008,0.03118062,64929.0,64928.0,0.003913]
[1721087571184,0.12350348,64929.0,64928.0,0.003913]
[1721087571994,0.10041603,64929.0,64928.0,0.003913]
[1721087572213,0.18349451,64929.0,64928.0,0.003913]
[1721087572374,0.03118062,64929.0,64928.0,0.003913]
[1721087572775,0.09118062,64929.0,64928.0,0.003913]
[1721087572979,0.12349451,64929.0,64928.0,0.003913]
[1721087574309,0.03118062,64929.0,64928.0,0.003913]
[1721087575942,0.07731949,64929.0,64928.0,0.003913]
[1721087576069,0.07731943,64929.0,64928.0,0.003913]
[1721087576859,0.03118062,64929.0,64928.0,0.003913]
[1721087577059,0.07731943,64929.0,64928.0,0.003913]
[1721087577650,0.09118062,64929.0,64928.0,0.003913]
[1721087577827,0.03118062,64929.0,64928.0,0.003913]
[1721087578214,0.00707566,64929.0,64928.0,0.003913]
[1721087578813,0.00791566,64929.0,64928.0,0.003913]
[1721087584158,0.01791566,64929.0,64928.0,0.003913]
[1721087585530,0.07791566,64929.0,64928.0,0.003913]
[1721087585682,0.01791566,64929.0,64928.0,0.003913]
[1721087586533,0.07791566,64929.0,64928.0,0.003913]
[1721087586735,0.01084,64929.0,64928.0,0.003913]
[1721087590918,0.08794,64929.0,64928.0,0.003913]
[1721087591125,0.15822813,64929.0,64928.0,0.003913]
[1721087592476,0.22122813,64929.0,64928.0,0.003913]
[1721087593069,0.01084,64929.0,64928.0,0.003913]
[1721087594568,0.16724,64929.0,64928.0,0.003913]
[1721087596464,0.15614,64929.0,64928.0,0.127126]
[1721087596706,0.00083,64931.0,64930.0,0.616047]
[1721087598074,0.00083,64931.0,64930.0,0.617047]
[1721087598277,0.00083,64931.0,64930.0,0.370628]
[1721087598592,0.00083,64931.0,64930.0,0.124209]
[1721087598743,0.06083,64931.0,64930.0,0.123209]
[1721087599233,0.00383,64931.0,64930.0,0.372628]
[1721087599437,0.06083,64931.0,64930.0,0.372628]
[1721087599713,0.06083,64931.0,64930.0,0.126209]
[1721087599869,0.00083,64931.0,64930.0,0.372628]
[1721087600952,0.00083,64931.0,64930.0,0.369628]
[1721087601376,0.00083,64931.0,64930.0,0.128209]
[1721087601994,0.06083,64931.0,64930.0,0.128209]
[1721087602393,0.06083,64931.0,64930.0,0.007]
[1721087602595,0.08493356,64931.0,64930.0,0.007]
[1721087602803,0.15419174,64931.0,64930.0,0.007]
[1721087602994,0.20814056,64931.0,64930.0,0.007]
[1721087603209,0.20814056,64931.0,64930.0,0.005]
[1721087603418,0.21114056,64931.0,64930.0,0.005]
[1721087603821,0.17729506,64931.0,64930.0,0.005]
[1721087604022,0.18433356,64931.0,64930.0,0.005]
[1721087604276,0.06,64929.0,64928.0,0.000913]
[1721087604582,0.15336953,64929.0,64928.0,0.000913]
[1721087605310,0.09336953,64929.0,64928.0,0.000913]
[1721087605512,0.11646195,64929.0,64928.0,0.003913]
[1721087605708,0.17646195,64929.0,64928.0,0.003913]
[1721087606568,0.08410356,64929.0,64928.0,0.003913]
[1721087606760,0.15336733,64929.0,64928.0,0.003913]
[1721087606932,0.08410356,64929.0,64928.0,0.003913]
[1721087607451,0.18050356,64929.0,64928.0,0.003913]
[1721087608177,0.24976774,64929.0,64928.0,0.003913]
[1721087608479,0.24976774,64929.0,64928.0,0.000913]
[1721087608632,0.24976774,64929.0,64928.0,0.003913]
[1721087609046,0.24976774,64929.0,64928.0,0.000913]
[1721087609229,0.2497653,64929.0,64928.0,0.000913]
[1721087609438,0.2497653,64929.0,64928.0,0.003913]
[1721087609981,0.24976537,64929.0,64928.0,0.003913]
[1721087610195,0.24976455,64929.0,64928.0,0.003913]
[1721087610631,0.18050356,64929.0,64928.0,0.003913]
[1721087612484,0.29593855,64929.0,64928.0,0.003913]
[1721087612684,0.18050356,64929.0,64928.0,0.003913]
[1721087613032,0.27285268,64929.0,64928.0,0.003913]
[1721087613230,0.18050356,64929.0,64928.0,0.003913]
[1721087613458,0.24976192,64929.0,64928.0,0.003913]
[1721087613664,0.18050356,64929.0,64928.0,0.003913]
[1721087613777,0.15336264,64929.0,64928.0,0.003913]
[1721087613985,0.24976264,64929.0,64928.0,0.003913]
[1721087614187,0.22667468,64929.0,64928.0,0.003913]
[1721087614381,0.22667569,64929.0,64928.0,0.003913]
[1721087614623,0.18050356,64929.0,64928.0,0.003913]
[1721087614827,0.1564,64929.0,64928.0,0.000913]
[1721087615026,0.18050524,64929.0,64928.0,0.000913]
[1721087615220,0.18050524,64929.0,64928.0,0.003913]
[1721087615610,0.18050524,64929.0,64928.0,0.000913]
[1721087616632,0.18050524,64929.0,64928.0,0.003913]
[1721087616835,0.29594747,64929.0,64928.0,0.003913]
[1721087616986,0.19954747,64929.0,64928.0,0.003913]
[1721087617194,0.24976824,64929.0,64928.0,0.003913]
[1721087618276,0.18050524,64929.0,64928.0,0.003913]
[1721087618425,0.21285697,64929.0,64928.0,0.003913]
[1721087618603,0.18050524,64929.0,64928.0,0.003913]
[1721087618803,0.27286141,64929.0,64928.0,0.003913]
[1721087619394,0.18050524,64929.0,64928.0,0.003913]
[1721087621429,0.29595391,64929.0,64928.0,0.003913]
[1721087622669,0.23595391,64929.0,64928.0,0.003913]
[1721087623083,0.2959568,64929.0,64928.0,0.003913]
[1721087624176,0.18050524,64929.0,64928.0,0.003913]
[1721087624386,0.1995568,64929.0,64928.0,0.003913]
[1721087624579,0.27285655,64929.0,64928.0,0.003913]
[1721087625187,0.18050524,64929.0,64928.0,0.000913]
[1721087625388,0.27285655,64929.0,64928.0,0.000913]
[1721087625593,0.27285655,64929.0,64928.0,0.003913]
[1721087625594,0.18050524,64929.0,64928.0,0.003913]
[1721087626039,0.2959452,64929.0,64928.0,0.003913]
[1721087626172,0.29594509,64929.0,64928.0,0.000913]
[1721087626371,0.29594509,64929.0,64928.0,0.003913]
[1721087626774,0.18050524,64929.0,64928.0,0.003913]
[1721087626981,0.29594509,64929.0,64928.0,0.003913]
[1721087627580,0.18050524,64929.0,64928.0,0.003913]
[1721087628419,0.29594015,64929.0,64928.0,0.003913]
[1721087628847,0.18050524,64929.0,64928.0,0.003913]
[1721087629162,0.02410524,64929.0,64928.0,0.003913]
[1721087629358,0.18050524,64929.0,64928.0,0.003913]
[1721087629604,0.29593419,64929.0,64928.0,0.003913]
[1721087630616,0.18050524,64929.0,64928.0,0.003913]
[1721087631130,0.19330257,64929.0,64928.0,0.003913]
[1721087631288,0.19330238,64929.0,64928.0,0.003913]
[1721087631491,0.29593041,64929.0,64928.0,0.003913]
[1721087632082,0.30872752,64929.0,64928.0,0.003913]
[1721087632790,0.30872235,64929.0,64928.0,0.003913]
[1721087634217,0.24872235,64929.0,64928.0,0.003913]
[1721087634779,0.24872235,64929.0,64919.0,0.000913]
[1721087634780,0.327728,64920.0,64919.0,0.000913]
[1721087634920,0.70748736,64920.0,64919.0,0.000913]
[1721087635127,0.80748736,64920.0,64919.0,0.000913]
[1721087635369,1.05394436,64920.0,64919.0,0.000913]
[1721087636140,1.05394436,64920.0,64919.0,0.003913]
[1721087636264,0.34140236,64920.0,64919.0,0.003913]
[1721087636670,0.51729929,64920.0,64919.0,0.000913]
[1721087636820,0.42500524,64920.0,64919.0,0.000913]
[1721087637216,0.54823324,64920.0,64919.0,0.000913]
[1721087637582,0.18410524,64920.0,64919.0,0.000913]
[1721087637782,0.1564,64920.0,64919.0,0.000913]
[1721087638068,0.18350786,64920.0,64919.0,0.000913]
[1721087638254,0.1594,64920.0,64919.0,0.000913]
[1721087638666,0.1634,64920.0,64919.0,0.001913]
[1721087638967,0.1664,64920.0,64919.0,0.001913]
[1721087639507,0.1634,64920.0,64919.0,0.001913]
[1721087639908,0.01,64920.0,64919.0,0.001913]
[1721087640107,0.01,64920.0,64919.0,0.761563]
[1721087640405,0.01,64920.0,64919.0,0.515103]
[1721087640979,0.01,64920.0,64919.0,0.268643]
[1721087641358,0.0964,64922.0,64920.0,0.123227]
[1721087641718,0.0964,64922.0,64921.0,0.00306353]
[1721087642095,0.0964,64922.0,64921.0,0.12628853]
[1721087642260,0.0964,64922.0,64921.0,0.123225]
[1721087642461,0.0964,64922.0,64920.0,0.00306353]
[1721087642462,0.0964,64922.0,64920.0,0.00506353]
[1721087642706,0.06,64921.0,64920.0,0.002]
[1721087643134,0.06,64921.0,64919.0,0.001913]
[1721087643135,0.06,64920.0,64919.0,0.001913]
[1721087643545,0.06,64920.0,64919.0,0.000913]
[1721087644365,0.241,64921.0,64919.0,0.000913]
[1721087644769,0.28716029,64921.0,64919.0,0.000913]
[1721087644928,0.03110841,64920.0,64919.0,0.001913]
[1721087645129,0.241,64921.0,64919.0,0.000913]
[1721087645130,0.28716029,64921.0,64919.0,0.000913]
[1721087645347,0.28716029,64921.0,64919.0,0.001913]
[1721087645533,0.03110841,64920.0,64919.0,0.001913]
[1721087645734,0.0772766,64920.0,64919.0,0.001913]
[1721087645940,0.1372766,64920.0,64919.0,0.001913]
[1721087646136,0.09110841,64920.0,64919.0,0.001913]
[1721087646392,0.03110826,64920.0,64919.0,0.001913]
[1721087646597,0.03110826,64920.0,64919.0,0.002282]
[1721087646808,0.02410826,64920.0,64919.0,0.001282]
[1721087647006,0.02710826,64920.0,64919.0,0.002282]
[1721087647228,0.07327645,64920.0,64919.0,0.002282]
[1721087647456,0.07327645,64920.0,64919.0,0.001282]
[1721087647666,0.07327645,64920.0,64919.0,0.002282]
[1721087647667,0.08027645,64920.0,64919.0,0.002282]
[1721087648036,0.07329267,64920.0,64919.0,0.001282]
[1721087648241,0.03410826,64920.0,64919.0,0.002282]
[1721087648465,0.03110826,64920.0,64919.0,0.002282]
[1721087648661,0.03410826,64920.0,64919.0,0.001282]
[1721087649066,0.10340364,64920.0,64919.0,0.001282]
[1721087649269,0.03110826,64920.0,64919.0,0.001282]
[1721087649713,0.03410826,64920.0,64919.0,0.001282]
[1721087649946,0.01,64920.0,64919.0,0.001282]
[1721087650186,0.007,64920.0,64919.0,0.001282]
[1721087650436,0.01,64920.0,64919.0,0.001282]
[1721087650618,0.017,64920.0,64919.0,0.002282]
[1721087650827,0.01,64920.0,64919.0,0.001282]
[1721087651026,0.01,64920.0,64919.0,0.002282]
[1721087651182,0.017,64920.0,64919.0,0.002282]
[1721087651382,0.017,64920.0,64919.0,0.001282]
[1721087651383,0.01,64920.0,64919.0,0.001282]
[1721087651622,0.01,64920.0,64919.0,0.064082]
[1721087651886,0.01,64920.0,64919.0,0.065082]
[1721087651887,0.017,64920.0,64919.0,0.065082]
[1721087652087,0.017,64920.0,64919.0,0.434772]
[1721087652290,0.017,64920.0,64919.0,0.681232]
[1721087652543,0.014,64920.0,64919.0,0.681232]
[1721087652805,0.017,64920.0,64919.0,0.681232]
[1721087653423,0.007,64920.0,64919.0,0.680232]
[1721087653627,0.06,64923.0,64922.0,0.00306353]
[1721087654286,0.06,64924.0,64922.0,0.00306353]
[1721087654493,0.06,64924.0,64923.0,0.123222]
[1721087655020,0.06,64924.0,64923.0,0.120222]
[1721087656622,0.064,64924.0,64923.0,0.120222]
[1721087656863,0.065,64924.0,64923.0,0.120222]
[1721087657069,0.061,64924.0,64923.0,0.120222]
[1721087657460,0.065,64924.0,64923.0,0.120222]
[1721087664304,0.1614,64924.0,64923.0,0.120222]
[1721087666219,0.065,64924.0,64923.0,0.120222]
[1721087666416,0.1614,64924.0,64920.0,0.00306353]
[1721087666641,0.0964,64921.0,64920.0,0.12629153]
[1721087666846,0.0964,64921.0,64920.0,0.123228]
[1721087667160,0.1564,64921.0,64920.0,0.123228]
[1721087667538,0.0964,64921.0,64920.0,0.123228]
[1721087668543,0.0964,64921.0,64920.0,0.126228]
[1721087668749,0.06,64924.0,64921.0,0.123226]
[1721087668945,0.06,64924.0,64922.0,0.00306353]
[1721087670486,0.06,64924.0,64922.0,0.12628753]
[1721087670864,0.061,64924.0,64922.0,0.12628753]
[1721087671091,0.065,64924.0,64922.0,0.12628753]
[1721087671419,0.064,64924.0,64922.0,0.12628753]
[1721087671890,0.065,64924.0,64922.0,0.12628753]
[1721087672671,0.1614,64924.0,64922.0,0.12628753]
[1721087674761,0.06,64923.0,64922.0,0.00306353]
[1721087674961,0.0775,64923.0,64921.0,0.00306353]
[1721087675167,0.1375,64923.0,64921.0,0.00306353]
[1721087675368,0.2021,64923.0,64921.0,0.00306353]
[1721087675618,0.2021,64923.0,64919.0,0.001282]
[1721087675619,0.0775,64923.0,64919.0,0.001282]
[1721087675819,0.1375,64923.0,64919.0,0.001282]
[1721087676040,0.0775,64923.0,64920.0,0.00306353]
[1721087676435,0.0964,64921.0,64920.0,0.00306353]
[1721087676634,0.0964,64921.0,64919.0,0.001282]
[1721087677039,0.003,64923.0,64921.0,0.123225]
[1721087677233,0.06,64924.0,64921.0,0.123225]
[1721087677582,0.06,64924.0,64922.0,0.00306353]
[1721087678188,0.06,64924.0,64919.0,0.127511]
[1721087678189,0.063,64923.0,64920.0,0.00306353]
[1721087678487,0.06,64923.0,64920.0,0.00306353]
[1721087680634,0.063,64923.0,64920.0,0.00306353]
[1721087682511,0.063,64923.0,64919.0,0.001282]
[1721087682711,0.063,64923.0,64920.0,0.00306353]
[1721087683293,0.063,64923.0,64919.0,0.001282]
[1721087683712,0.063,64923.0,64920.0,0.00306353]
[1721087684207,0.06,64923.0,64920.0,0.00306353]
[1721087684549,0.063,64923.0,64920.0,0.00306353]
[1721087685105,0.066,64923.0,64920.0,0.00306353]
[1721087685326,0.066,64923.0,64919.0,0.001282]
[1721087685542,0.066,64923.0,64920.0,0.00306353]
[1721087686060,0.006,64923.0,64920.0,0.123228]
[1721087686265,0.006,64923.0,64921.0,0.00306353]
[1721087686786,0.06,64924.0,64921.0,0.00306353]
[1721087687197,0.003,64923.0,64921.0,0.12628953]
[1721087687527,0.006,64923.0,64921.0,0.12628953]
[1721087687930,0.06,64924.0,64921.0,0.12628953]
[1721087688806,0.064,64924.0,64921.0,0.12628953]
[1721087690534,0.0816,64922.0,64921.0,0.00306353]
[1721087690673,0.0816,64922.0,64919.0,0.001282]
[1721087690674,0.06,64920.0,64919.0,0.001282]
[1721087690873,0.12050662,64920.0,64919.0,0.001282]
[1721087691563,0.0964,64920.0,64919.0,0.001282]
[1721087692180,0.0964,64920.0,64919.0,0.002282]
[1721087693364,0.0964,64920.0,64919.0,0.001282]
[1721087693804,0.120507,64920.0,64919.0,0.001282]
[1721087693947,0.120507,64920.0,64919.0,0.005282]
[1721087693948,0.16671905,64920.0,64919.0,0.005282]
[1721087694152,0.0964,64920.0,64919.0,0.005282]
[1721087694355,0.0974,64920.0,64919.0,0.005282]
[1721087694529,0.0816,64921.0,64920.0,0.00306353]
[1721087694729,0.0816,64921.0,64920.0,6.353e-05]
[1721087694981,0.00493647,64920.0,64919.0,0.002282]
[1721087695187,0.0816,64921.0,64919.0,0.001282]
[1721087695385,0.06,64925.0,64922.0,0.173222]
[1721087695586,0.06,64925.0,64922.0,0.123222]
[1721087695856,0.06,64925.0,64922.0,0.173222]
[1721087696003,0.06,64925.0,64922.0,0.123222]
[1721087696405,0.06,64925.0,64922.0,0.168222]
[1721087696977,0.06,64925.0,64922.0,0.169222]
[1721087696978,0.065,64925.0,64922.0,0.169222]
[1721087697177,0.065,64925.0,64922.0,0.119222]
[1721087697831,0.065,64925.0,64924.0,0.47966099]
[1721087697832,0.005,64925.0,64924.0,0.47966099]
[1721087698052,0.005,64925.0,64924.0,0.369661]
[1721087698340,0.005,64925.0,64924.0,0.47966099]
[1721087699319,0.005,64925.0,64924.0,0.369661]
[1721087699536,1.0,64926.0,64924.0,0.369661]
[1721087699737,1.0,64926.0,64925.0,0.369657]
[1721087699936,1.0,64926.0,64925.0,0.123219]
[1721087702616,1.0,64926.0,64924.0,0.12322]
[1721087702820,1.0,64926.0,64923.0,0.10999999]
[1721087703851,1.0,64926.0,64922.0,0.10999999]
[1721087704409,1.0,64926.0,64925.0,0.616095]
[1721087704639,1.0,64926.0,64925.0,1.10873299]
[1721087704815,1.0,64926.0,64925.0,1.37878815]
[1721087705135,1.0,64926.0,64925.0,1.67460724]
[1721087705318,1.0,64926.0,64925.0,1.37870959]
[1721087705521,1.0,64926.0,64925.0,1.37870016]
[1721087705663,1.0,64926.0,64925.0,1.39304104]
[1721087705869,1.0,64926.0,64925.0,1.56604104]
[1721087706067,0.0001,64926.0,64925.0,2.09283125]
[1721087706287,0.00084,64926.0,64925.0,1.90133078]
[1721087706489,0.00084,64926.0,64925.0,2.31132078]
[1721087706684,0.00084,64926.0,64925.0,2.12445399]
[1721087707037,0.00084,64926.0,64925.0,1.95292177]
[1721087707255,0.00084,64926.0,64925.0,1.33210204]
[1721087707407,0.00084,64926.0,64925.0,1.54326324]
[1721087707605,0.00084,64926.0,64925.0,1.43764104]
[1721087707831,0.00084,64926.0,64925.0,1.48364104]
[1721087707994,0.00084,64926.0,64925.0,1.43364104]
[1721087708201,0.00084,64926.0,64925.0,1.24964105]
[1721087708436,0.00084,64926.0,64925.0,1.43364104]
[1721087708636,0.00084,64926.0,64925.0,1.49763937]
[1721087708786,0.00084,64926.0,64925.0,1.31363938]
[1721087709145,0.00084,64926.0,64925.0,1.48363937]
[1721087709487,0.00084,64926.0,64925.0,1.27763938]
[1721087709687,0.00084,64926.0,64925.0,1.38763937]
[1721087709890,0.00084,64926.0,64925.0,1.37363937]
[1721087710295,0.00084,64926.0,64925.0,0.78709499]
[1721087710498,0.00084,64926.0,64925.0,0.72609499]
[1721087710942,0.00084,64926.0,64925.0,0.74009499]
[1721087711384,0.00084,64926.0,64925.0,0.72609499]
[1721087711584,0.00084,64926.0,64925.0,0.383657]
[1721087711786,0.00084,64926.0,64925.0,0.369657]
[1721087711997,0.00084,64926.0,64925.0,0.383657]
[1721087712301,0.00084,64926.0,64925.0,0.50765699]
[1721087712503,0.00084,64926.0,64925.0,0.028]
[1721087712657,0.00084,64926.0,64925.0,0.014]
[1721087712856,0.00084,64926.0,64925.0,0.028]
[1721087713522,0.06184,64926.0,64925.0,0.014]
[1721087713765,0.06184,64926.0,64922.0,0.000924]
[1721087713945,0.06184,64926.0,64925.0,0.014]
[1721087714085,0.06184,64926.0,64925.0,0.028]
[1721087714284,0.06184,64926.0,64925.0,0.014]
[1721087714491,0.06184,64926.0,64925.0,0.015]
[1721087714711,0.00084,64926.0,64925.0,0.015]
[1721087714911,0.00084,64926.0,64925.0,0.137219]
[1721087715118,0.00084,64926.0,64925.0,0.014]
[1721087715322,0.00284,64926.0,64923.0,0.123222]
[1721087715542,0.00084,64926.0,64925.0,0.004]
[1721087715957,0.00084,64926.0,64925.0,0.684895]
[1721087716164,0.00084,64926.0,64925.0,0.927333]
[1721087716537,0.00084,64926.0,64925.0,1.03833299]
[1721087716917,0.00084,64926.0,64925.0,1.03733299]
[1721087717184,0.00084,64926.0,64925.0,0.927333]
[1721087717360,0.00084,64926.0,64925.0,1.03733299]
[1721087717587,0.00084,64926.0,64925.0,0.680895]
[1721087717588,0.00184,64926.0,64925.0,0.680895]
[1721087717801,0.00184,64926.0,64925.0,0.616095]
[1721087717969,0.00084,64926.0,64925.0,0.72609499]
[1721087718170,0.00084,64926.0,64925.0,0.622095]
[1721087718402,0.00084,64926.0,64925.0,0.876533]
[1721087718601,0.00084,64926.0,64925.0,1.05133299]
[1721087718800,0.00084,64926.0,64925.0,1.291271]
[1721087719002,0.00084,64926.0,64925.0,1.283271]
[1721087719426,0.00084,64926.0,64925.0,1.036833]
[1721087719628,0.00084,64926.0,64925.0,1.045833]
[1721087719980,0.00084,64926.0,64925.0,0.695895]
[1721087720185,0.00084,64926.0,64925.0,0.631095]
[1721087720954,0.00084,64926.0,64925.0,0.74109499]
[1721087721158,0.00084,64926.0,64925.0,0.631095]
[1721087721355,0.00084,64926.0,64925.0,0.887533]
[1721087722216,0.00084,64926.0,64925.0,0.952333]
[1721087722621,0.00084,64926.0,64925.0,1.65365273]
[1721087722932,0.00084,64926.0,64925.0,1.60665274]
[1721087723322,0.00084,64926.0,64925.0,1.70765273]
[1721087723520,0.00084,64926.0,64925.0,1.65765273]
[1721087723771,0.00084,64926.0,64925.0,1.25683299]
[1721087723950,0.00084,64926.0,64925.0,1.31083299]
[1721087724370,0.00084,64926.0,64925.0,1.32483299]
[1721087724604,0.00084,64926.0,64925.0,1.57127099]
[1721087724987,0.00084,64926.0,64925.0,1.415271]
[1721087725568,0.00084,64926.0,64925.0,1.27883299]
[1721087725769,0.00084,64926.0,64925.0,1.168833]
[1721087727325,0.00084,64926.0,64925.0,1.415271]
[1721087727524,0.00084,64926.0,64925.0,1.63527099]
[1721087728029,0.00084,64926.0,64925.0,1.465271]
[1721087730035,0.00084,64926.0,64925.0,1.63527099]
[1721087730493,1.00084,64926.0,64925.0,1.060533]
[1721087730985,1.00084,64926.0,64925.0,1.11053299]
[1721087731851,1.07804,64926.0,64925.0,1.11053299]
[1721087732455,1.14134,64926.0,64925.0,0.51765699]
[1721087732796,1.14134,64926.0,64925.0,0.76409499]
[1721087733568,1.07804,64926.0,64925.0,0.76409499]
[1721087733905,1.00084,64926.0,64925.0,1.01053299]
[1721087736454,1.00084,64926.0,64925.0,0.51765699]
[1721087736623,1.13754,64926.0,64925.0,0.51765699]
[1721087737184,1.13754,64926.0,64925.0,0.76409499]
[1721087737589,1.13754,64926.0,64925.0,0.51765699]
[1721087738087,1.13754,64926.0,64925.0,0.51858099]
[1721087739081,1.13754,64926.0,64925.0,0.76501899]
[1721087739202,1.13754,64926.0,64925.0,0.655019]
[1721087739203,1.00084,64926.0,64925.0,0.655019]
[1721087741593,1.00084,64926.0,64925.0,0.76501899]
[1721087743371,1.00084,64926.0,64925.0,0.655019]
[1721087747797,1.00084,64926.0,64925.0,0.716744]
[1721087748088,1.00084,64926.0,64925.0,1.44959479]
[1721087748290,1.00084,64926.0,64925.0,1.67751798]
[1721087749360,1.00084,64926.0,64925.0,1.60034319]
[1721087750424,1.00084,64926.0,64925.0,1.6003376]
[1721087750629,1.00084,64926.0,64925.0,1.77033759]
[1721087750891,1.00084,64926.0,64925.0,1.6003376]
[1721087752024,1.00084,64926.0,64925.0,1.2768996]
[1721087752420,1.00084,64926.0,64925.0,1.30109959]
[1721087752621,1.00084,64926.0,64925.0,1.1910996]
[1721087753795,1.00084,64926.0,64925.0,1.1911003]
[1721087756378,1.00084,64926.0,64925.0,1.30110029]
[1721087756815,1.00084,64926.0,64925.0,1.17318199]
[1721087757201,1.00084,64926.0,64925.0,1.30110509]
[1721087757395,1.00084,64926.0,64925.0,1.17318199]
[1721087758156,1.00084,64926.0,64925.0,1.063182]
[1721087759290,1.00084,64926.0,64925.0,1.1911035]
[1721087759462,1.00084,64926.0,64925.0,1.2141035]
[1721087759845,1.00084,64926.0,64925.0,1.2241035]
[1721087760390,1.00084,64926.0,64925.0,1.22410008]
[1721087762818,1.00084,64926.0,64925.0,1.096182]
[1721087762954,1.00084,64926.0,64925.0,1.22409896]
[1721087764465,1.00084,64926.0,64925.0,1.23409896]
[1721087765149,1.00084,64926.0,64925.0,1.48053696]
[1721087766098,1.00084,64926.0,64925.0,1.48053312]
[1721087767158,1.00084,64926.0,64925.0,1.59246889]
[1721087767300,1.00084,64926.0,64925.0,2.31452337]
[1721087767301,0.00084,64926.0,64925.0,2.31452337]
[1721087767513,0.00084,64926.0,64925.0,2.22325183]
[1721087767952,0.00084,64926.0,64925.0,2.58377925]
[1721087769332,0.00084,64926.0,64925.0,2.58368608]
[1721087769545,0.001,64954.0,64941.0,0.05]
[1721087769759,0.001,64954.0,64939.0,0.05]
[1721087769760,0.00835,64965.0,64939.0,0.05]
[1721087769761,0.0799,64969.0,64967.0,0.47941699]
[1721087769965,0.0799,64969.0,64967.0,0.615695]
[1721087770840,0.0799,64969.0,64967.0,0.369417]
[1721087771036,0.0799,64969.0,64967.0,0.370417]
[1721087771689,0.0799,64969.0,64967.0,0.369417]
[1721087771891,0.0799,64969.0,64967.0,0.615695]
[1721087772291,0.0799,64969.0,64967.0,0.72569499]
[1721087772590,0.0799,64969.0,64967.0,0.615695]
[1721087772965,0.0799,64969.0,64967.0,0.623695]